[Event "Romanian Team Blitz Open 2022"]
[Site "Sebes"]
[Date "2022.12.04"]
[Round "5.9"]
[White "Nastase, Robert-Paul"]
[Black "Patrascu, Catalin-Lucian"]
[Result "1-0"]
[ECO "B44"]
[WhiteElo "2229"]
[BlackElo "2279"]
[Annotator "TA"]
[PlyCount "113"]
[EventDate "2022.12.04"]
[EventType "blitz"]
[EventCountry "ROU"]
[SourceTitle "playchess.com"]
[Source "ChessBase"]
[SourceQuality "1"]
[TimeControl "180+2"]

{[%evp 13,113,18,25,0,0,-8,2,0,40,0,20,0,27,-7,-16,-41,-12,-35,-33,-31,-32,-31,0,-62,9,-76,-32,-42,0,0,23,21,40,36,40,36,38,27,32,78,87,97,145,0,0,0,-2,-22,-4,-145,-124,-200,-76,-77,-72,-88,-59,-77,0,0,0,-94,29995,-5502,0,-8,0,-1820,-310,-29997,-29998,-29998,-29963,-29998,-528,-2488,-94,-93,0,0,0,0,0,0,8,0,0,0,0,0,0,0,0,0,0,-51,-39,-171,-169,-252,-7,-8]} 1. e4 {[%emt 0:00:01]} c5 {[%emt 0:00:00]} 2. Nf3 {[%emt 0:00:03][%cal Bg1f3,Bf3d4,Bd4b5][%mdl 32]} e6 {[%emt 0:00:02]} 3. d4 {[%emt 0:00:00]} cxd4 {[%emt 0:00:01]} 4. Nxd4 {[%emt 0:00:01]} Nc6 {[%emt 0:00:01]} 5. Nb5 {[%emt 0:00:01]} d6 {[%emt 0:00:09]} 6. c4 {[%emt 0:00:01]} a6 {[%emt 0:00:02]} 7. N5c3 {[%emt 0:00:01]} Nf6 {[%emt 0:00:04]} 8. g3 {[%emt 0:00:01] B44: Sicilian: Taimanov: 5 Nb5.} Be7 {[%emt 0:00:03]} 9. Bg2 {[%emt 0:00:00]} O-O {[%emt 0:00:05]} 10. O-O {[%emt 0:00:01]} Bd7 {[%emt 0:00:08] [#]} 11. Be3 $146 {[%emt 0:00:12]} ({Predecessor:} 11. Na3 Rc8 12. Bf4 Ne5 13. Qe2 Ng6 14. Bd2 Re8 15. Rac1 Qc7 16. Be3 Qb8 17. Rfd1 {½-½ (37) Del Rio de Angelis,S (2480)-De la Riva Aguado,O (2549) Burgos 2003}) 11... Qc7 {[%emt 0:00:08]} (11... Ne5 $5 {[%cal Re5c4]}) 12. Qe2 {[%emt 0:00:41]} Rac8 {[%emt 0:00:30]} 13. Nd2 {[%emt 0:01:21]} Ne5 {[%emt 0:00:34][%cal Re5c4]} 14. Rac1 {[%emt 0:00:02]} Neg4 {[%emt 0:00:51]} 15. Bd4 {[%emt 0:00:04]} e5 {[%emt 0:00:04]} 16. Be3 {[%emt 0:00:02]} Nxe3 {[%emt 0:00:04]} 17. Qxe3 {[%emt 0:00:01]} Be6 {[%emt 0:00:04]} 18. h3 {[%emt 0:00:16]} ({Better is} 18. Rfd1 $11) 18... Qb8 {[%emt 0:00:07]} (18... Bxc4 $2 19. Nd5 Nxd5 20. exd5 $18) ({Black should play} 18... Qd7 $1 $15) 19. Kh2 {[%emt 0:00:02]} (19. Nd5 $11 Bxd5 20. cxd5) 19... b5 {[%emt 0:00:02]} 20. Nd5 {[%emt 0:00:07]} Bxd5 {[%emt 0:00:06]} 21. cxd5 {[%emt 0:00:03]} Nd7 {[%emt 0:00:21]} 22. h4 {[%emt 0:00:13]} Rxc1 {[%emt 0:00:08]} 23. Rxc1 {[%emt 0:00:02]} Rc8 {[%emt 0:00:01]} 24. Rxc8+ {[%emt 0:00:02]} Qxc8 {[%emt 0:00:01]} 25. Bh3 {[%emt 0:00:01] Threatens to win with Qa7.} Qc7 {[%emt 0:00:06] Prevents Qa7.} 26. Bxd7 {[%emt 0:00:02]} Qxd7 $14 {[%emt 0:00:01][%mdl 4096] Endgame KQB-KQN} 27. Qb6 $1 {[%emt 0:00:09] Against Qc7} Qc8 {[%emt 0:00:05]} (27... g5 $142) 28. Nb3 {[%emt 0:00:10] White is more active.} (28. Qc6 $16 Qg4 29. f3 (29. Qxa6 Qe2 $17)) 28... h5 {[%emt 0:00:03]} 29. Na5 {[%emt 0:00:09]} Qc2 {[%emt 0:00:05][%csl LRb2,LRe4]} 30. Nc6 {[%emt 0:00:03]} (30. Qxa6 $2 Qxf2+ 31. Kh3 Qg1 32. Qc8+ Bd8 $1 $19 {[%mdl 512]}) 30... Bf6 {[%emt 0:00:01]} 31. Qb8+ {[%emt 0:00:08]} (31. Qxa6 $2 Qxf2+ 32. Kh3 Qf1+ 33. Kh2 Qe2+ 34. Kg1 Qe3+ 35. Kh2 Qe2+ 36. Kg1 Qxe4 $19) (31. Nb8 $11 {remains equal.}) 31... Kh7 $17 {[%emt 0:00:01]} 32. Qa7 {[%emt 0:00:02]} (32. Kg1 $17) 32... Qxe4 {[%emt 0:00:02]} (32... Qxb2 $19 33. Qxf7 Qxf2+ 34. Kh1 Qf3+ 35. Kh2 Qf2+ 36. Kh1 Qe2) 33. Qxf7 {[%emt 0:00:01]} Qf3 {[%emt 0:00:02]} 34. Kg1 {[%emt 0:00:03]} e4 {[%emt 0:00:01] ...e3 is the strong threat.} 35. Qe6 {[%emt 0:00:02] Against e3} Qd1+ {[%emt 0:00:02]} 36. Kh2 {[%emt 0:00:01]} Qf3 {[%emt 0:00:02]} (36... Bxb2 {is a self mate.} 37. Ne7 (37. Qxe4+ g6 $16) (37. Qxe4+ g6 $16)) 37. Kg1 {[%emt 0:00:01]} Bxb2 $2 {[%emt 0:00:02][%mdl 8192] [#]} (37... a5 $17) 38. Kf1 $4 {[%emt 0:00:04][%mdl 8192]} (38. Ne7 $1 {was the only winning move.} Qd1+ 39. Kh2 Qxd5 40. Qxd5 Kh6 41. Qg5+ Kh7 42. Qxh5#) 38... Qd1+ $2 {[%emt 0:00:02]} (38... Bc3 $19 39. Kg1 Be1) 39. Kg2 $11 {[%emt 0:00:06] White threatens Ne7 and mate.} Qf3+ $2 {[%emt 0:00:01][%mdl 8192]} (39... Qg4 $11) 40. Kf1 $1 $19 {[%emt 0:00:00]} Bf6 $2 {[%emt 0:00:05]} (40... Bc3 41. Kg1 Be1) 41. Ke1 $2 {[%emt 0:00:00]} (41. Kg1 $19) 41... Bc3+ {[%emt 0:00:03]} 42. Kf1 {[%emt 0:00:00]} b4 {[%emt 0:00:02]} 43. Qe8 {[%emt 0:00:02]} Bf6 {[%emt 0:00:02]} (43... Qh1+ $142 44. Ke2 Qe1#) 44. Qe6 {[%emt 0:00:03]} e3 $2 {[%emt 0:00:02]} (44... b3 $19 {and Black stays clearly on top. ( -> ...b2)} 45. axb3 Bc3) 45. Qxe3 $17 {[%emt 0:00:01]} Qxd5 {[%emt 0:00:01]} (45... Qd1+ $17 46. Kg2 Qxd5+ 47. Qf3 Qxf3+ 48. Kxf3 Bc3) 46. Nxb4 $11 {[%emt 0:00:04]} Qb5+ {[%emt 0:00:04]} 47. Qd3+ {[%emt 0:00:01]} Qxd3+ $1 {[%emt 0:00:01]} 48. Nxd3 {[%emt 0:00:00] KB-KN} Kg6 {[%emt 0:00:01]} 49. Ke2 {[%emt 0:00:02]} Kf5 {[%emt 0:00:01]} 50. Ke3 {[%emt 0:00:05]} Bd8 {[%emt 0:00:04]} 51. Nb4 {[%emt 0:00:03]} Bb6+ {[%emt 0:00:02]} 52. Ke2 {[%emt 0:00:02]} a5 {[%emt 0:00:02]} 53. Nd5 {[%emt 0:00:01]} Bc5 {[%emt 0:00:01]} 54. Nc3 {[%emt 0:00:02]} (54. f3 $11) 54... Ke5 $1 $15 {[%emt 0:00:03]} 55. f4+ {[%emt 0:00:02]} (55. Kf3 $15) 55... Kd4 $19 {[%emt 0:00:02]} 56. Nd1 {[%emt 0:00:06]} (56. Nb5+ {was forced.} Kc4 57. Nc7) 56... Ke4 $2 {[%emt 0:00:06]} (56... Kc4 $19 {And now ...Bd4 would win.} 57. f5 d5 58. Nb2+ Kd4) 57. Nc3+ $1 {[%emt 0:00:02][%mdl 32768] Weighted Error Value: White=0.75/Black=0.87. Loss on time!?} 1-0

[Event "Romanian Team Blitz Open 2022"]
[Site "Sebes"]
[Date "2022.12.04"]
[Round "5.10"]
[White "Creanga, Robert-Ionut"]
[Black "Daianu, Cristian-Clement"]
[Result "1-0"]
[ECO "D87"]
[WhiteElo "2190"]
[BlackElo "2189"]
[Annotator "TA"]
[PlyCount "93"]
[EventDate "2022.12.04"]
[EventType "blitz"]
[EventCountry "ROU"]
[SourceTitle "playchess.com"]
[Source "ChessBase"]
[SourceQuality "1"]
[TimeControl "180+2"]

{[%evp 17,93,8,13,0,-8,0,0,0,38,0,24,-41,47,-20,-9,-23,0,-13,-13,-4,0,0,0,0,0,0,6,0,10,-17,16,-269,0,-29999,58,16,54,15,47,48,61,54,63,38,34,41,53,25,37,33,118,120,136,81,79,46,89,6,6,0,0,0,0,0,0,0,0,0,14,0,22,27,29972,29973,29973,29975,29996,29997]} 1. d4 {[%emt 0:00:01]} Nf6 {[%emt 0:00:02]} 2. c4 {[%emt 0:00:01]} g6 {[%emt 0:00:01]} 3. Nc3 {[%emt 0:00:03]} d5 {[%emt 0:00:01]} 4. cxd5 {[%emt 0:00:05]} Nxd5 {[%emt 0:00:02]} 5. e4 {[%emt 0:00:07]} Nxc3 {[%emt 0:00:02]} 6. bxc3 {[%emt 0:00:01]} Bg7 {[%emt 0:00:01]} 7. Bc4 {[%emt 0:00:14]} c5 {[%emt 0:00:08]} 8. Ne2 {[%emt 0:00:05]} O-O {[%emt 0:00:05]} 9. O-O {[%emt 0:00:05]} Nc6 {[%emt 0:00:06][%cal Rc5d4,Bb8c6,Bc6e5,Be5d7,Bd7c5][%mdl 32]} 10. dxc5 {[%emt 0:00:28] D87: Exchange Grünfeld: Classical Line: Variations without ...cxd4.} Qa5 {[%emt 0:00:23]} 11. Be3 {[%emt 0:00:15]} Ne5 {[%emt 0:00:39] Against f4} 12. Bb3 {[%emt 0:00:10] The position is equal.} Rd8 {[%emt 0:00:02] Inhibits f4.} 13. Qc2 {[%emt 0:00:19] [#]} Bd7 $146 {[%emt 0:00:37]} (13... Ng4 $5 {[%cal Rg4e3]}) ({Predecessor:} 13... Ng4 14. Qc1 Bd7 15. Bd4 e5 16. Be3 Bb5 17. c4 Nxe3 18. Qxe3 Ba6 19. Nc3 Rac8 {1-0 (35) Schneider,A (2056)-Luberanski,J (1444) Marianske Lazne 2017}) 14. Rfd1 {[%emt 0:00:24]} (14. Bd4 $11) 14... Bc6 {[%emt 0:00:10]} (14... Ng4 $1 $15) 15. f3 {[%emt 0:00:11]} (15. Rxd8+ $14 Rxd8 16. Nd4) 15... Nd7 $11 {[%emt 0:00:17]} 16. Bd5 {[%emt 0:00:41]} Nxc5 {[%emt 0:00:19]} (16... Ba4 $5 {[%cal Ra4c2]} 17. Bb3 Nxc5 $11) 17. Bxc6 {[%emt 0:00:02]} bxc6 {[%emt 0:00:01]} 18. Nd4 {[%emt 0:00:04]} Qa6 {[%emt 0:00:08]} 19. Rab1 {[%emt 0:00:06]} Rd7 {[%emt 0:00:10]} 20. Nb3 {[%emt 0:00:16]} Rxd1+ {[%emt 0:00:07]} 21. Rxd1 {[%emt 0:00:01]} Ne6 {[%emt 0:00:01]} 22. c4 {[%emt 0:00:02]} Rc8 {[%emt 0:00:06]} 23. Rd7 {[%emt 0:00:02]} Qa3 {[%emt 0:00:03]} 24. Rxa7 $2 {[%emt 0:00:01][%mdl 8192] [#]} (24. Bxa7 c5 25. Qf2 (25. Rxe7 $2 {is the wrong capture.} Nd4 $19) 25... Bf6 $17) (24. Qd2 $11 {and White stays safe.}) 24... Qb4 $2 {[%emt 0:00:01]} ({Better is} 24... Nd4 $1 $19 {[%mdl 512]} 25. Rxa3 Nxc2) 25. Rd7 {[%emt 0:00:04][%mdl 8192]} (25. Bf2 $11) 25... Bf6 $2 {[%emt 0:00:08]} (25... Qe1# {mates}) 26. Rd1 {[%emt 0:00:02]} Ra8 {[%emt 0:00:02]} 27. g3 {[%emt 0:00:02]} Qa3 {[%emt 0:00:01]} 28. Rd2 $36 {[%emt 0:00:01][%mdl 2048] White is more active.} c5 {[%emt 0:00:02][%cal Oe6d4]} 29. Kg2 {[%emt 0:00:01]} Kg7 {[%emt 0:00:03]} 30. f4 {[%emt 0:00:02] And now e5 would win.} Bd4 {[%emt 0:00:03] Inhibits e5.} 31. Bxd4+ {[%emt 0:00:02]} cxd4 {[%emt 0:00:01]} 32. Nxd4 {[%emt 0:00:01]} Nxd4 {[%emt 0:00:01]} 33. Rxd4 $14 {[%emt 0:00:00][%mdl 4096] Endgame KQR-KQR} Rb8 {[%emt 0:00:01]} ({Black should try} 33... Qxa2 $14 34. Rd2 Qa3) 34. Rd2 $16 {[%emt 0:00:02]} Qc5 {[%emt 0:00:03]} 35. Qc3+ {[%emt 0:00:02]} (35. Qd3 $142) 35... f6 {[%emt 0:00:02]} 36. Re2 {[%emt 0:00:03]} (36. h3 {is more complex.} Rb1 37. Qd4 Qc6 38. Qd5) 36... Rb4 {[%emt 0:00:01] [#]} 37. e5 {[%emt 0:00:01]} (37. Rc2 $1 $16) 37... Rxc4 $11 {[%emt 0:00:02]} 38. exf6+ {[%emt 0:00:02]} (38. Qb3 {seems wilder.} Kh6 39. Qd3 Rc1 40. Qf3) 38... exf6 {[%emt 0:00:01]} 39. Qf3 {[%emt 0:00:02]} Rc3 {[%emt 0:00:03]} 40. Qb7+ {[%emt 0:00:01]} Kh6 {[%emt 0:00:01]} 41. Qe7 {[%emt 0:00:08]} Qd5+ {[%emt 0:00:02]} 42. Qe4 {[%emt 0:00:01]} Qd1 {[%emt 0:00:03]} 43. g4 {[%emt 0:00:03]} Rc5 {[%emt 0:00:02]} (43... Rc1 {is a self mate.} 44. g5+ fxg5 45. fxg5+ Kxg5 46. Qe7+ Kh6 47. Qh4+ Kg7 48. Re7+ Kg8 49. Qxh7+ Kf8 50. Qg7#) 44. h4 {[%emt 0:00:01] Intending g5+ and mate.} Rc7 $2 {[%emt 0:00:02][%mdl 8192]} (44... Rc3 $11) 45. g5+ {[%emt 0:00:02] White mates.} fxg5 {[%emt 0:00:01]} 46. fxg5+ {[%emt 0:00:02]} Kh5 {[%emt 0:00:04]} 47. Qf3+ {[%emt 0:00:02] What a bad dream for Black.   Weighted Error Value: White=0.46/Black=0.55} 1-0

[Event "Romanian Team Blitz Open 2022"]
[Site "Sebes"]
[Date "2022.12.04"]
[Round "5.11"]
[White "Vrencian, Lehel"]
[Black "Butolo, Alexandru-Mircea"]
[Result "1-0"]
[ECO "B30"]
[WhiteElo "2226"]
[BlackElo "2043"]
[Annotator "TA"]
[PlyCount "53"]
[EventDate "2022.12.04"]
[EventType "blitz"]
[EventCountry "ROU"]
[SourceTitle "playchess.com"]
[Source "ChessBase"]
[SourceQuality "1"]
[TimeControl "180+2"]

{[%evp 14,53,25,18,29,26,33,0,0,0,35,-11,23,0,111,136,104,122,29995,90,99,22,297,294,295,238,231,190,283,134,538,541,532,483,1474,1494,1485,1436,1836,1132,1046,1016]} 1. e4 {[%emt 0:00:02]} c5 {[%emt 0:00:00]} 2. Nf3 {[%emt 0:00:01]} Nc6 {[%emt 0:00:01]} 3. Bb5 {[%emt 0:00:02]} e6 {[%emt 0:00:03]} 4. O-O {[%emt 0:00:02]} Nge7 {[%emt 0:00:02]} 5. Re1 {[%emt 0:00:01]} a6 {[%emt 0:00:02]} 6. Bxc6 {[%emt 0:00:02]} Nxc6 {[%emt 0:00:01]} 7. d4 {[%emt 0:00:00]} cxd4 {[%emt 0:00:02]} 8. Nxd4 {[%emt 0:00:01]} Be7 {[%emt 0:00:01] B30: Sicilian: 2...Nc6 3 Bb5, lines without ...g6.} 9. Nxc6 {[%emt 0:00:09]} bxc6 {[%emt 0:00:01]} 10. e5 {[%emt 0:00:01]} (10. Qg4 $5 {[%cal Rg4g7]}) 10... O-O {[%emt 0:00:12] The position is equal.} 11. Nc3 {[%emt 0:00:02] [#]} Bb7 $146 {[%emt 0:00:30]} ({Predecessor:} 11... f6 12. Qg4 fxe5 13. Rxe5 d6 14. Rh5 Qe8 15. Bg5 e5 16. Qe2 Bf5 17. Bxe7 Qxe7 18. Rxf5 Rxf5 19. Qc4+ Qf7 20. Qxc6 Rf8 {½-½ (20) Jones,G (2641)-Gormally,D (2467) England 2015}) 12. Qg4 {[%emt 0:00:07]} (12. Ne4 $14) 12... Kh8 {[%emt 0:00:17]} (12... f5 $5 {[%cal Rf5g4]} 13. Qg3 c5 $11) 13. Re3 {[%emt 0:00:32] Threatens to win with Rh3.} Qa5 {[%emt 0:00:38]} (13... f5 $11 {remains equal.} 14. Qe2 Qc7) 14. Qh5 $16 {[%emt 0:00:19] Intending Rh3 and mate.} g6 {[%emt 0:00:32]} 15. Qh6 $40 {[%emt 0:00:04][%mdl 128] Threatening mate with Rh3. White attacks with force.} Rg8 $2 {[%emt 0:00:06][%mdl 8192] [#]} (15... f5 $16) 16. Rh3 $2 {[%emt 0:00:18]} (16. Qxh7+ $1 {[%mdl 512] mates} Kxh7 17. Rh3+ Kg7 18. Bh6+ Kh8 19. Bf8+ Bh4 20. Rxh4#) 16... Rg7 {[%emt 0:00:01]} 17. Qf4 {[%emt 0:00:01]} (17. Bg5 $16 Bxg5 18. Qxg5) 17... Qb4 {[%emt 0:00:18][%mdl 8192] [#]} (17... g5 $11 {and Black is okay.} 18. Qe3 c5) 18. Qxb4 $1 $18 {[%emt 0:00:20]} Bxb4 {[%emt 0:00:00]} 19. Ne4 {[%emt 0:00:00]} Be7 {[%emt 0:00:13]} 20. Bh6 {[%emt 0:00:09] Prevents c5.} Rgg8 {[%emt 0:00:42] [#]} (20... c5 {was necessary.}) 21. Rd1 {[%emt 0:00:02]} (21. Bg5 $1 $18 {[%cal Rg5e7]} Bxg5 22. Nxg5) 21... Rad8 $2 {[%emt 0:00:00][%mdl 8192]} (21... c5 $16 22. Ng5 (22. Rxd7 Rgd8 $14) 22... Bxg5 23. Bxg5 Rgb8 24. Rxd7 Kg8) 22. Ng5 {[%emt 0:00:07] White is clearly winning.} Bxg5 {[%emt 0:00:00]} 23. Bxg5 {[%emt 0:00:01] Black must now prevent Bf6+.} Rb8 {[%emt 0:00:00]} (23... Rgf8 $142 24. Rh6 f6) 24. Bf6+ {[%emt 0:00:01]} Rg7 {[%emt 0:00:00]} 25. Rxd7 {[%emt 0:00:02]} Kg8 {[%emt 0:00:00]} 26. Bxg7 {[%emt 0:00:03]} Kxg7 {[%emt 0:00:00]} 27. Rb3 {[%emt 0:00:01] Weighted Error Value: White=0.72/Black=1.44} 1-0

[Event "Romanian Team Blitz Open 2022"]
[Site "Sebes"]
[Date "2022.12.04"]
[Round "5.12"]
[White "Prelipcean, Eric-Matei"]
[Black "Craciun, Sasha-Matei"]
[Result "1-0"]
[ECO "D37"]
[WhiteElo "1909"]
[BlackElo "2001"]
[Annotator "TA"]
[PlyCount "95"]
[EventDate "2022.12.04"]
[EventType "blitz"]
[EventCountry "ROU"]
[SourceTitle "playchess.com"]
[Source "ChessBase"]
[SourceQuality "1"]
[TimeControl "180+2"]

{[%evp 9,95,25,25,10,17,0,2,-46,0,-6,53,34,68,51,68,63,62,67,63,72,114,104,127,111,125,81,84,95,78,80,89,84,112,122,122,119,97,97,110,93,92,93,110,76,121,84,102,118,137,136,151,144,207,109,108,46,46,8,0,0,17,38,31,36,114,117,117,114,154,87,5734,5913,1237,5077,5401,1584,1174,1074,1193,1124,29980,29981,29993,29988,29997,29990,29998,29999]} 1. d4 {[%emt 0:00:01]} d5 {[%emt 0:00:00]} 2. c4 {[%emt 0:00:01]} e6 {[%emt 0:00:01]} 3. Nf3 {[%emt 0:00:01]} Nf6 {[%emt 0:00:01]} 4. Nc3 {[%emt 0:00:00]} Be7 {[%emt 0:00:01]} 5. Bf4 {[%emt 0:00:02]} O-O {[%emt 0:00:01]} 6. Rc1 {[%emt 0:00:01] D37: Queen's Gambit Declined: 5 Bf4.} Nbd7 {[%emt 0:00:07]} 7. c5 {[%emt 0:00:11] [#]} c6 $146 {[%emt 0:00:03]} ({Predecessor:} 7... Nh5 8. Bd2 c6 9. e4 dxe4 10. Nxe4 Qc7 11. Bc4 e5 12. O-O exd4 13. Bg5 Ndf6 14. Nxf6+ Bxf6 15. Bxf6 {½-½ (15) Mchedlishvili,M (2629)-Miroshnichenko,E (2651) Konya 2011}) 8. h3 {[%emt 0:00:02]} (8. e3 $11) 8... Re8 {[%emt 0:00:11]} (8... Ne4 $15) 9. e3 {[%emt 0:00:05]} Nf8 {[%emt 0:00:02]} (9... Qa5 $11) 10. Bd3 {[%emt 0:00:02]} Ng6 {[%emt 0:00:01]} 11. Bh2 {[%emt 0:00:04]} Nd7 {[%emt 0:00:11]} 12. O-O {[%emt 0:00:27]} e5 {[%emt 0:00:17]} 13. Bxg6 {[%emt 0:00:05]} ({Don't play} 13. Nxe5 Ngxe5 14. dxe5 Nxc5 $11) 13... hxg6 {[%emt 0:00:05]} 14. Bxe5 {[%emt 0:00:09]} ({But not} 14. dxe5 Nxc5 15. Nd4 a5 $11) 14... Nxe5 {[%emt 0:00:02]} 15. Nxe5 {[%emt 0:00:00]} a5 {[%emt 0:00:17]} 16. a3 {[%emt 0:00:03]} Qc7 {[%emt 0:00:08]} 17. Nd3 {[%emt 0:00:04]} Bf6 {[%emt 0:00:08]} 18. b4 {[%emt 0:00:02]} axb4 {[%emt 0:00:03]} 19. axb4 {[%emt 0:00:02]} Bf5 {[%emt 0:00:04]} 20. Qd2 {[%emt 0:00:20]} Ra3 {[%emt 0:00:11]} 21. Ra1 {[%emt 0:00:02]} Rea8 {[%emt 0:00:01] [#]} 22. Rxa3 {[%emt 0:00:19]} Rxa3 {[%emt 0:00:01]} 23. Qb2 {[%emt 0:00:01]} Ra8 {[%emt 0:00:12]} 24. Nc1 {[%emt 0:00:11][%cal Bd3c1,Bc1e2,Be2g3][%mdl 32]} g5 {[%emt 0:00:10]} 25. g4 {[%emt 0:00:34]} Be6 {[%emt 0:00:07]} 26. N1e2 {[%emt 0:00:02]} g6 {[%emt 0:00:05]} 27. Ng3 {[%emt 0:00:02]} (27. b5 {keeps more tension.} Kg7 28. Kg2 Rh8 29. Ng3) 27... Kg7 {[%emt 0:00:01]} 28. Ra1 {[%emt 0:00:01]} Rh8 {[%emt 0:00:01]} 29. Kg2 {[%emt 0:00:02]} Qd7 {[%emt 0:00:08]} 30. b5 {[%emt 0:00:08]} Bd8 {[%emt 0:00:07]} (30... Qc7 $16 {might work better.} 31. bxc6 bxc6) 31. bxc6 {[%emt 0:00:02]} (31. Ra7 $18) 31... bxc6 $16 {[%emt 0:00:02]} 32. Rb1 {[%emt 0:00:14]} (32. Ra8 $16) 32... f5 $14 {[%emt 0:00:06] ...Bc7 is the strong threat.} 33. Qb7 {[%emt 0:00:09]} Bc7 $1 {[%emt 0:00:01]} 34. gxf5 {[%emt 0:00:04]} gxf5 {[%emt 0:00:01] aiming for ...f4.} 35. f4 {[%emt 0:00:02]} gxf4 {[%emt 0:00:05]} 36. exf4 {[%emt 0:00:01]} Rb8 {[%emt 0:00:03]} (36... Bxf4 $2 37. Qxd7+ Bxd7 38. Rb7 $16) ({Black should play} 36... Kg6 $14) 37. Qa7 $16 {[%emt 0:00:05]} Rc8 {[%emt 0:00:10]} (37... Bxf4 $2 38. Qxd7+ Bxd7 39. Nh5+ Kh6 40. Nxf4 $18) 38. Rb7 {[%emt 0:00:01] Strongly threatening Na4.} Kg6 {[%emt 0:00:04]} 39. Na4 {[%emt 0:00:01] White is much more active. Pair of Knights!} (39. Nce2 $142) 39... Qe8 $2 {[%emt 0:00:07][%mdl 8192] A mistake that costs the game.} 40. Rxc7 $18 {[%emt 0:00:06]} Rxc7 {[%emt 0:00:07]} 41. Qxc7 {[%emt 0:00:01]} Bf7 {[%emt 0:00:01]} 42. Qd6+ {[%emt 0:00:01]} Kh7 {[%emt 0:00:02]} 43. Qe5 {[%emt 0:00:04]} ({Not} 43. Nxf5 Qe4+ 44. Kg3 Qxf5 $16) 43... Qa8 {[%emt 0:00:02]} 44. Qxf5+ {[%emt 0:00:05]} Kg8 {[%emt 0:00:00]} 45. Qg5+ {[%emt 0:00:01] White mates.} Kf8 {[%emt 0:00:01]} 46. Qh6+ {[%emt 0:00:01]} Ke7 {[%emt 0:00:13]} 47. Qd6+ {[%emt 0:00:02]} Ke8 {[%emt 0:00:00] [#]} 48. Nf5 $1 {[%emt 0:00:00] Weighted Error Value: White=0.16 (very precise) /Black=0.31} 1-0

[Event "Romanian Team Blitz Open 2022"]
[Site "Sebes"]
[Date "2022.12.04"]
[Round "5.13"]
[White "Soltanici, Ruslan"]
[Black "Stanca, Adrian"]
[Result "1-0"]
[ECO "B08"]
[WhiteElo "2357"]
[BlackElo "2182"]
[Annotator "TA"]
[PlyCount "63"]
[EventDate "2022.12.04"]
[EventType "blitz"]
[EventCountry "ROU"]
[SourceTitle "playchess.com"]
[Source "ChessBase"]
[SourceQuality "1"]
[TimeControl "180+2"]

{[%evp 16,63,47,20,36,25,33,10,59,63,62,61,121,68,75,50,101,98,86,72,89,33,37,43,50,54,129,134,128,128,128,131,126,95,90,62,60,72,61,71,153,116,157,150,306,304,304,306,606,591]} 1. e4 {[%emt 0:00:02] Erenburg,Sergey} g6 {[%emt 0:00:01]} 2. d4 {[%emt 0:00:01]} Bg7 {[%emt 0:00:01]} 3. Nc3 {[%emt 0:00:01]} d6 {[%emt 0:00:01]} 4. Nf3 {[%emt 0:00:01]} Nf6 {[%emt 0:00:03]} 5. Be2 {[%emt 0:00:01]} O-O {[%emt 0:00:02]} 6. O-O {[%emt 0:00:01]} Nbd7 {[%emt 0:00:03]} 7. e5 {[%emt 0:00:15]} Ne8 {[%emt 0:00:17] 7...Ne8 scores better than 7...dxe5.} 8. Bf4 {[%emt 0:00:27]} c6 {[%emt 0:00:42]} 9. a4 {[%emt 0:00:04] [#]} a5 $146 {[%emt 0:00:08] B08: Pirc Defence: Classical System.} ({Predecessor:} 9... dxe5 10. dxe5 Nc7 11. Bc4 Nb6 12. Ba2 Bg4 13. Qe2 Ne6 14. Bxe6 fxe6 15. Bg3 Bxf3 16. gxf3 Qe8 17. Ne4 {0-1 (40) Fominyh,A (2579)-Morozevich,A (2732) Sochi 2004 EXT 2020 [Erenburg,Sergey]}) 10. Bg3 {[%emt 0:00:15]} d5 {[%emt 0:00:06]} 11. Qd2 {[%emt 0:00:09]} Nc7 {[%emt 0:00:03]} (11... f6 $11 {should be considered.}) 12. Bd3 $14 {[%emt 0:00:12]} Re8 {[%emt 0:00:15]} 13. h4 {[%emt 0:00:03][%cal Bh2h4,Bh4h5,Bh5h6][%mdl 32]} Na6 {[%emt 0:00:04] Inhibits h5.} ({Black should play} 13... h5 $14) 14. Rfe1 {[%emt 0:00:04]} (14. h5 $16) 14... Nf8 {[%emt 0:00:03]} 15. h5 {[%emt 0:00:12] White is much more active.} Nb4 {[%emt 0:00:02]} (15... gxh5 $14 16. Nh4 Ng6) 16. h6 $16 {[%emt 0:00:03]} Bh8 {[%emt 0:00:05]} 17. Bf1 $36 {[%emt 0:00:02][%mdl 2048] White is in control.} Bg4 {[%emt 0:00:11]} 18. Nh2 {[%emt 0:00:24]} (18. Nb1 $16) 18... Bf5 $14 {[%emt 0:00:04]} 19. Rac1 {[%emt 0:01:23]} Qb6 {[%emt 0:00:35]} 20. Nd1 {[%emt 0:00:02]} (20. f4 {seems wilder.} Nxc2 21. Rxc2 Bxc2 22. Qxc2 Qxd4+ 23. Kh1) 20... c5 {[%emt 0:00:10]} (20... Bxc2 $14 21. Rxc2 Nxc2 22. Qxc2 Ne6) 21. c3 {[%emt 0:00:00]} Nc6 {[%emt 0:00:02][%cal Rc5d4]} 22. Ne3 {[%emt 0:00:00]} Be6 {[%emt 0:00:09][%cal Rc5d4]} 23. Nf3 {[%emt 0:00:00][%cal Bh2f3,Bf3d2,Bd2b3,Bb3c5][%mdl 32]} cxd4 {[%emt 0:00:03]} 24. cxd4 {[%emt 0:00:00]} Qb4 {[%emt 0:00:03]} 25. Bb5 {[%emt 0:00:00] [#] Strongly threatening Rc3.} (25. Rc3 {feels hotter.} Qxa4 26. Rc5 Qb4 27. Qd1) 25... Qxd2 {[%emt 0:00:06]} 26. Nxd2 {[%emt 0:00:00]} Rec8 {[%emt 0:00:01]} 27. Nb3 {[%emt 0:00:00]} Nd7 {[%emt 0:00:12]} (27... g5 $142) 28. Bh4 {[%emt 0:00:00]} Kf8 {[%emt 0:00:03]} 29. f4 {[%emt 0:00:00][%cal Bf2f4,Bf4f5][%mdl 32]} Nb4 $2 {[%emt 0:00:12]} (29... Nb6 $16 {was called for.} 30. Rc3 f6 31. exf6 exf6) 30. g4 $18 {[%emt 0:00:00]} Nb6 {[%emt 0:00:07]} 31. Nc5 {[%emt 0:00:00] [#] Threatens to win with f5.} Rab8 $2 {[%emt 0:00:07]} (31... Nc6 32. Red1 (32. Nxb7 Nxd4 33. Kf2 Nxb5 $17) 32... Rc7 33. Nxb7 Rac8 34. Bxc6 Rxc6 35. Rxc6 Rxc6 36. Nxa5 Rc8) 32. f5 {[%emt 0:00:24] Weighted Error Value: White=0.13 (very precise) /Black=0.38} 1-0